Cogmind - Beta 14 @@@ ROGUE MODE // 2024.10.19 @ 21:49:00 Player: Ender Result: Destroyed by Y-45 Defender with Beam Rifle Performance ------------- Evolutions (1) 500 Regions Visited (2) 400 Robots Destroyed (12) 60 Value Destroyed (314) 314 Prototype IDs (2) 40 Alien Tech Used (0) 0 Bonus (0) 0 TOTAL SCORE: 1314 Bonus ------- None Cogmind --------- Core Integrity 0/400 Matter 300/300 Energy 100/100 System Corruption 0% Temperature Cool (27) Movement Core (350) Ox6 Location -9/Materials Parts ------- > --- POWER (2) -------- (None) > --- PROPULSION (2) --- (None) > --- UTILITY (3) ------ Large Storage Unit > --- WEAPON (2) ------- (None) > --- INVENTORY (15) --- Medium Matter Pod (100) Peak State ------------ > --- POWER ------------ Light Ion Engine Light Ion Engine > --- PROPULSION ------- Wheel Wheel > --- UTILITY ---------- Large Storage Unit Terrain Scanner ECM Suite > --- WEAPON ----------- Heavy EM Pulse Gun Light Assault Rifle > --- INVENTORY -------- Compact Wheel Medium Matter Pod Heavy EM Pulse Gun Small Laser [Rating: 10] Favorites ----------- Power Light Ion Engine Engine Light Ion Engine Propulsion Wheel Wheel Wheel Utility Large Storage Unit Device ECM Suite Storage Large Storage Unit Processor Visual Processing Unit Weapon Light Assault Rifle Energy Gun Heavy EM Pulse Gun Ballistic Gun Light Assault Rifle Special Melee Weapon Datajack Build | -11 -10 -9 ------- Run | Yrd Mat Mat Slots Evolved 2 | . . 2 Power 1 | . . 1 Propulsion . | . . . Utility 1 | . . 1 Weapon . | . . . Parts Attached 25 | 5 15 5 Power 3 | 1 1 1 Engine 3 | 1 1 1 Core . | . . . Reactor . | . . . Propulsion 5 | 2 2 1 Treads . | . . . Leg . | . . . Wheel 5 | 2 2 1 Hover . | . . . Flight . | . . . Utility 7 | . 6 1 Device 3 | . 2 1 Storage 3 | . 3 . Processor 1 | . 1 . Hackware . | . . . Protection . | . . . Artifact . | . . . Weapon 10 | 2 6 2 Energy Gun 7 | 2 3 2 Energy Cannon . | . . . Ballistic Gun 2 | . 2 . Ballistic Cannon . | . . . Launcher . | . . . Special Weapon . | . . . Impact Weapon . | . . . Slashing Weapon . | . . . Piercing Weapon . | . . . Special Melee Weapon 1 | . 1 . Unidentified Prototypes . | . . . Parts Lost 11 | . . 11 Power 2 | . . 2 Propulsion 3 | . . 3 Utility 2 | . . 2 Weapon 4 | . . 4 Highest Loss Streak 9 | . . 9 To Critical Strikes . | . . . Average Slot Usage (%) 91 | . 96 80 Engine 12 | . 13 10 Wheel 25 | . 27 18 Device 11 | . 7 20 Storage 14 | . 16 11 Processor 1 | . 2 . Energy Gun 14 | . 15 9 Ballistic Gun 10 | . 10 9 Peak Build Rating 10 | 5 9 10 Average Rating 7 | 2 7 7 On Entrance 4 | . 5 8 Naked Turns . | . . . Heaviest Build 33 | 7 29 33 Greatest Support 26 | 20 20 26 Greatest Overweight (x) 8 | . 6 8 Average Overweight (x) . | . . 1 Largest Inventory Capacity 15 | 5 15 15 Average Capacity 13 | 5 13 15 Most Carried 12 | 3 12 5 Average Carried 3 | 1 4 2 Final Capacity 15 | 5 15 15 Final Carried 6 | 1 6 1 Class Distribution -------------------- 100% | Mutant Dominant Class ---------------- Mutant | -10/Materials Mutant | -9/Materials Resources | -11 -10 -9 ----------- Run | Yrd Mat Mat Matter Collected 656 | 230 377 49 Remotely . | . . . Salvage Created 486 | . 298 188 Parts 31 | . 21 10 Haulers Intercepted . | . . . Recyclers Shooed 1 | . 1 . Parts Field Recycled . | . . . Retrieved Matter . | . . . Parts Self-Destructed . | . . . Prevented . | . . . Kills | -11 -10 -9 ------- Run | Yrd Mat Mat Combat Hostiles Destroyed 10 | . 6 4 Guns 8 | . 6 2 AOE 1 | . . 1 Classes Destroyed 6 | . 4 2 Recycler 1 | . 1 . Watcher 1 | . 1 . Swarmer 3 | . 3 . Grunt 5 | . 3 2 Duelist 1 | . . 1 Sentry 1 | . . 1 Best Kill Streak 3 | . 3 3 Combat Bots Only 3 | . 3 3 Max Kills in Single Turn 1 | . 1 1 Gunslinging . | . . . Exploded 1 | . . 1 Melee . | . . . Uniques/NPCs Destroyed . | . . . Combat | -11 -10 -9 -------- Run | Yrd Mat Mat Hostile Shots Fired 121 | . 32 89 Missed 43 | . 13 30 Damage Taken 1135 | . 170 965 Core 437 | . 25 412 Absorbed by Shields . | . . . Regen/Repaired (Parts) 18 | . 18 . Core Remaining (%) 95 | 100 90 . Volleys Fired 36 | . 24 12 Largest 2 | . 2 2 Hottest 90 | . 90 65 Shots Fired 68 | . 44 24 Gun 68 | . 44 24 Cannon . | . . . Launcher . | . . . Special . | . . . Kinetic 27 | . 15 12 Thermal 5 | . 5 . Explosive . | . . . Electromagnetic 36 | . 24 12 Robot Hit Streak 11 | . 4 11 Robot Miss Streak 5 | . 5 1 Penetration Max . | . . . Secondary Targets 2 | . 1 1 Max Gunslinging Chain 1 | . 1 1 Shots Hit Robots 38 | . 18 20 Core Hits 16 | . 10 6 Critical Kills . | . . . Critical Parts Destroyed . | . . . Critical Strikes 1 | . 1 . Corrupt 1 | . 1 . Melee Attacks . | . . . Impact . | . . . Slashing . | . . . Piercing . | . . . Sneak Attacks . | . . . Combat Hostiles . | . . . Follow-up Attacks . | . . . Damage Inflicted 477 | . 216 261 Guns 443 | . 216 227 Cannons . | . . . Explosions 34 | . . 34 Melee . | . . . Ramming . | . . . Kinetic 131 | . 55 76 Thermal 60 | . 26 34 Explosive . | . . . Electromagnetic 286 | . 135 151 Impact . | . . . Slashing . | . . . Piercing . | . . . Highest Corruption . | . . . Average Corruption . | . . . Corruption Purged . | . . . Corruption Blocked . | . . . Overload Shots . | . . . Overflow Damage . | . . . Projectiles . | . . . Explosions . | . . . Melee . | . . . Knockbacks . | . . . Impact . | . . . Kinetic . | . . . Secondary . | . . . Self-Inflicted Damage 49 | . . 49 Shots 1 | . . 1 Rammed . | . . . Targets Rammed . | . . . Kicked . | . . . Crushed . | . . . Highest Temperature 90 | . 90 64 Average Temperature 28 | . 30 25 Received Heat Transfer 324 | . 36 288 Siege Activations . | . . . Robots Corrupted 1 | . . 1 Combat Hostiles 1 | . . 1 Parts Fried 2 | . 1 1 Impact Corruptions . | . . . Robots Melted . | . . . Combat Hostiles . | . . . Parts Melted . | . . . Heat Transferred 124 | . 74 50 Parts Sabotaged . | . . . Parts Stolen . | . . . Parts Stripped . | . . . Power Chain Reactions 1 | . . 1 Alert | -11 -10 -9 ------- Run | Yrd Mat Mat Peak Influence 217 | . 217 98 Initial 18 | . . 18 Average 75 | . 94 40 Maximum Alert Level 1 | . 1 . Low Security (%) 93 | 100 90 100 Level 1 6 | . 9 . Level 2 . | . . . Level 3 . | . . . Level 4 . | . . . Level 5 . | . . . High Security . | . . . Max Security . | . . . Squads Dispatched 2 | . 2 . Investigation 2 | . 2 . Extermination . | . . . Reinforcement . | . . . Assault . | . . . Garrison . | . . . Intercept . | . . . Searches Triggered . | . . . Construction Impeded . | . . . Haulers Reinforced . | . . . Active Scanning Responses . | . . . Cargo Convoy Interrupts . | . . . Stealth | -11 -10 -9 --------- Run | Yrd Mat Mat Distress Signals 1 | . 1 . Communications Jammed . | . . . Distress Signals . | . . . Times Spotted 17 | . 10 7 Peak Tracking Total 5 | . 3 5 Tactical Retreats 1 | . 1 . Traps | -11 -10 -9 ------- Run | Yrd Mat Mat Traps Triggered 4 | . 4 . Indirectly . | . . . Trap Hack Attempts . | . . . Triggered . | . . . Disarmed . | . . . Reprogrammed . | . . . Reused . | . . . Traps Extracted . | . . . Installed . | . . . Triggered . | . . . Machines | -11 -10 -9 ---------- Run | Yrd Mat Mat Machines Disabled . | . . . Max in Single Turn . | . . . Machines Repaired . | . . . Machines Dismantled . | . . . Machines Sabotaged . | . . . Overloaded Fab Kills . | . . . Hacking | -11 -10 -9 --------- Run | Yrd Mat Mat Machines Accessed 6 | . 4 2 Terminals 4 | . 2 2 Fabricators . | . . . Repair Stations 1 | . 1 . Recycling Units 1 | . 1 . Scanalyzers . | . . . Garrison Access . | . . . Total Hacks 21 | . 15 6 Successful 14 | . 12 2 Failed 7 | . 3 4 Catastrophic . | . . . Database Lockouts . | . . . Manual . | . . . Terminals 12 | . 6 6 Fabricators . | . . . Repair Stations 3 | . 3 . Recycling Units 6 | . 6 . Scanalyzers . | . . . Garrison Access . | . . . Terminal Hacks 7 | . 5 2 Record 4 | . 4 . Prototype ID Bank 1 | . 1 . Maintenance Status 1 | . . 1 Zone Layout 1 | . . 1 Fabricator Hacks . | . . . Repair Station Hacks 2 | . 2 . Scan Component 1 | . 1 . Repair 1 | . 1 . Recycling Unit Hacks 5 | . 5 . Recycle Component 1 | . 1 . Process 1 | . 1 . Report Inventory 1 | . 1 . Retrieve Matter 1 | . 1 . Retrieve Components 1 | . 1 . Scanalyzer . | . . . Garrison Access Hacks . | . . . Unauthorized Hacks . | . . . Terminals . | . . . Fabricators . | . . . Repair Stations . | . . . Recycling Units . | . . . Scanalyzers . | . . . Garrison Access . | . . . Data Cores Recovered . | . . . Used . | . . . Hacking Detections 6 | . 4 2 Full Trace Events 3 | . 3 . Feedback Events . | . . . Feedback Blocked . | . . . Robot Schematics Acquired . | . . . Robots Built . | . . . Authchips . | . . . Time . | . . . Total Robot Build Rating . | . . . Part Schematics Acquired . | . . . Parts Built . | . . . Authchips . | . . . Time . | . . . Total Part Build Rating . | . . . Parts Repaired 1 | . 1 . Time 26 | . 26 . Parts Recycled 1 | . 1 . Recycled Matter 6 | . 6 . Retrieved Matter 6 | . 6 . Retrieved Components . | . . . Parts Scanalyzed . | . . . Part Schematics Acquired . | . . . Parts Damaged . | . . . Bothacking | -11 -10 -9 ------------ Run | Yrd Mat Mat Used RIF Installer . | . . . Robots Hacked . | . . . Non-combat . | . . . Combat . | . . . Robot Hacks Applied . | . . . Relay Couplers Released . | . . . Fabnet Peak Effective % . | . . . Robots Rewired . | . . . Allies Hacked . | . . . Hacks Repelled . | . . . Allies | -11 -10 -9 -------- Run | Yrd Mat Mat Total Allies . | . . . Largest Group . | . . . Highest-Rated Group . | . . . Highest-Rated Ally . | . . . Total Orders . | . . . Ally Attacks . | . . . Total Damage . | . . . Kills . | . . . Allies Corrupted . | . . . Allies Melted . | . . . Intel | -11 -10 -9 ------- Run | Yrd Mat Mat Robot Analysis Total . | . . . Derelict Logs Recovered . | . . . Drone Launches . | . . . Drone Recoveries . | . . . Exploration | -11 -10 -9 ------------- Run | Yrd Mat Mat Turns Passed 834 | 51 574 209 Spaces Moved 692 | 57 503 132 Core 31 | 19 1 11 Treads . | . . . Legs . | . . . Wheels 661 | 38 502 121 Hover . | . . . Flight . | . . . Fastest Speed 50 | 50 80 90 Average Speed 96 | 70 92 120 Slowest Speed 450 | 80 350 450 Overloaded Moves . | . . . Propulsion Burnouts . | . . . Robots Hopped . | . . . Cave-ins Triggered . | . . . Exploration Rate (%) 24 | 8 50 15 Regions Visited 2 Branch Regions . Pre-discovered Areas . | . . . Known Exits Taken . | . . . Unknown Exits Taken 2 | 1 1 . Scrap Searched . | . . . Spaces Dug . | . . . Terrain Destroyed 3 | . . 3 Melee . | . . . Projectile . | . . . AOE 3 | . . 3 Terrain Rammed . | . . . Walls Destroyed . | . . . Machines Disabled . | . . . Actions | -11 -10 -9 --------- Run | Yrd Mat Mat Total 797 | 67 569 161 Wait 17 | . 5 12 Move 690 | 56 502 132 Hop . | . . . Pick Up 25 | 6 19 . Fast Attach . | . . . Attach 20 | 5 10 5 Detach . | . . . Swap 5 | . 5 . Drop 4 | . 4 . Fire 36 | . 24 12 Melee . | . . . Ram . | . . . Kick . | . . . Crush . | . . . Escape Stasis . | . . . Rewire . | . . . Trap . | . . . Miscellaneous . | . . . Route ------- -11/Scrapyard -10/Materials (discovered 2 exits: *Mat / [*Min]) -9/Materials History --------- Turn | Location | Event 2 | -11/Scrapyard | Met Revision 17 44 | -11/Scrapyard | Discovered new exit (range 8) 52 | -11/Scrapyard | Entered Materials 236 | -10/Materials | Discovered new exit (range 13) 303 | -10/Materials | Build established: Mutant 385 | -10/Materials | Repaired Med. Matter Pod? 407 | -10/Materials | Discovered new exit (range 16) 626 | -10/Materials | Entered another Materials area 626 | -9/Materials | Evolved 2 slots: Power x1, Utility x1 815 | -9/Materials | Core integrity fell below 50% 824 | -9/Materials | Core integrity fell below 20% 835 | -9/Materials | Destroyed by Y-45 Defender with Beam Rifle Last Messages --------------- and consider deactivating power-draining parts if not. 00788_ U-05 Engineer lays Concrete. 00791_ Wheel destroyed. 00791_ U-05 Engineer lays Concrete. 00793_ K-01 Serf collects debris. 00793_ U-05 Engineer lays Concrete. 00794_ K-01 Serf collects debris. 00794_ U-05 Engineer lays Concrete. 00796_ K-01 Serf collects debris. 00796_ U-05 Engineer builds a Wall. 00799_ U-05 Engineer lays Concrete. 00802_ Lgt. Assault Rifle destroyed. 00811_ Sml. Laser destroyed. 00820_ W-16 Scout destroyed. 00820_ Terrain Scanner destroyed. 00822_ K-01 Serf collects debris. 00826_ ECM Suite destroyed. 00826_ Com. Wheel destroyed. 00835_ Critical hit (Burn: +37). Map ----- +----------------------------------------------------+ | ????#?????????????# + """ #??????? ????????? | | ??????????#???????# # #????????????????? | | ??????????????????# # #????????????????? | | ?????????????????## ###########????????????????? | | ?????????????????# #?????????????????????????? | | ??????????#??????# #?????????????????????????? | | ?????????????????# #?????????????????????????? | | ?????????????????# #?????????????????????????? | | ?????????????????# #???? ? ??????????????????? | | ?????????????????### #?????????????????????????? | | ???????????????????# #?????????????????????????? | | ????????????????#??# #????#????????????????????? | | ???????????????????# #?????????????????????????? | | ???????????????????# #??#??????????????????????? | | ???????#???????????# #?????????????????????????? | | ???????????????????# #?????????????????????????? | | ?????????#######?#?# #?????????????????????????? | | ?????????# #### #?????????????????????????? | | ?????????# """ + #?????????????????????????? | | ?????????# """ #### #??#??????????????????????? | | ?????????# """ ???# ######????????????????????? | | ?????????# ????# # #????????????????????? | | ?????????# ! ????# # #? ?????????????????? | | ?????????# ?????# # #????????????????????? | | ?????????# ?????# # a #????????????????????? | | ?????????# ]??????# =+%@ #????????????????????? | | ????????? /??????# %#! #????????????????????? | | ????????## ??? ??## ==# [!*###??????????????????? | | ?????????# ???????# # YY=+ #??????????????????? | | ?????????# ????????# # =! # #??????????????????? | | ?????????##????##### ###/## #??????????????????? | | ???????? =% r # ?????????????????? | | ???????? + """??????????????? | | ???????? # """??????????????? | | ???????? ###+##################??????????????????? | | ?????????????????????????????????????????????????? | | ???????????????? ????????????????????????????????? | | ?????????????????? ???#??????????????????????????? | | ?????????????????????????????????????????????????? | | ???????????????????#?????????????????????????????? | | ?????????????????????????????????????????????????? | | ?????????????????????#???????????????????????????? | | ?????????????????????????????????????????????????? | | ?????????????????????????????????????????????????? | | ?????????????????????????????????????????????????? | | ?????????????????????????????????????????????????? | | ?????????????????????????????????????????????????? | | ?????????????????????????????????????????????????? | | ?????????????????????????????????????????????????? | | ?????????????????????????????????????????????????? | +----------------------------------------------------+ Best States ------------- Heat Dissipation 28 Energy Generation 15 Energy Capacity 150 Matter Stores 398 Matter Capacity 400 Sight Range 18 Terrain Scan Range 14 Terrain Scan Density 10 ECM Strength 1 Evasion (%) 50 Item Schematics ----------------- None Robot Schematics ------------------ None Fabricated ------------ Nothing Alien Tech Used ----------------- None Achievements -------------- Crack Shot Part-time Mechanic Power Corrupts Challenges ------------ None Game ------ Seed IonAssembledLaser Manual? 0 Play Time 00:20:51 Cumulative 0.7 hours Start 2024.10.19 @ 21:28:25 End 2024.10.19 @ 21:49:00 Sessions 1 Manual Loads 0 Difficulty Rogue Special Mode None Game No. 2 Rogue 2 Adventurer 0 Explorer 0 Win Type - Total 0 Types 0/0/0/0/0/0/0/0/0 Lore% 0 Gallery% 2 Achievement% 2 Wizard Run 0 Options --------- Layout 1 ASCII 0 Keyboard 0 Movement Arrows Keybinds 0 Fullscreen 1 Font 24/Smallcaps Map View 50x35 Zoom Use 0% Tactical HUD 1 Map Filters NONE Filters NONE Steam 1 RUN: 8c130c62-cb37-4ab6-8b2b-65105ac89014